[Event "17th Delhi GM Open 2019-B"]
[Site "Delhi"]
[Date "2019.01.10"]
[Round "6"]
[White "Koustav Chakraborty"]
[Black "Elangbam Shashikanta Singh"]
[Result "1-0"]
[ECO "C41"]
[WhiteElo "1898"]
[BlackElo "1702"]
[Annotator "NA"]
[PlyCount "137"]
[EventDate "2019.01.09"]
[EventType "swiss"]
[EventCountry "IND"]
[SourceTitle "playchess.com"]
[Source "ChessBase"]
[SourceQuality "1"]
[TimeControl "3600+30"]

1. e4 {[%emt 0:00:00]} d6 {[%emt 0:00:00]} 2. Nc3 {[%emt 0:00:00]} e5 {[%emt 0:00:00]} 3. Nf3 {[%emt 0:00:00]} Nf6 {[%emt 0:00:00]} 4. d4 {[%emt 0:00:00]} Nbd7 {[%emt 0:00:00]} 5. Bc4 {[%emt 0:00:00]} Be7 {[%emt 0:00:00]} 6. O-O {[%emt 0:00:00]} O-O {[%emt 0:00:00]} 7. h3 {[%emt 0:00:00]} c6 {[%emt 0:00:00]} 8. Qe2 {[%emt 0:00:00] LiveBook: 6 Games C41: Philidor Defence} (8. a4 a5 9. Re1 exd4 10. Nxd4 Nc5 11. Bf4 Be6 12. Nxe6 fxe6 13. e5 Nfd7 14. exd6 Rxf4 15. dxe7 Qxe7 16. Qe2 Raf8 17. Bxe6+ Nxe6 18. Qxe6+ Qxe6 19. Rxe6 Rxf2 {½-½ (33) Das,A (2441)-Kuzubov,Y (2638) Dubai 2016}) 8... a6 {[%emt 0:00:00]} 9. a4 {[%emt 0:00:00]} c5 $146 {[%emt 0:00:00]} (9... exd4 $11 {remains equal.} 10. Nxd4 Ne5) ({Predecessor:} 9... b6 10. Rd1 Qc7 11. d5 c5 12. Nh4 g6 13. Bh6 Re8 14. Nf3 Nh5 15. Nd2 Bf8 16. Bxf8 Nf4 17. Qe3 Nxf8 18. Ne2 {1-0 (36) Thomas,H-Schreurs,W IECC email 1997}) 10. dxe5 {[%emt 0:00:00]} Nxe5 {[%emt 0:00:00]} 11. Ba2 {[%emt 0:00:00]} Be6 {[%emt 0:00:00]} 12. Rd1 {[%emt 0:00:00]} Qc7 {[%emt 0:00:00]} 13. Bf4 {[%emt 0:00:00]} Rad8 {[%emt 0:00:00]} 14. Bxe5 {[%emt 0:00:00]} dxe5 {[%emt 0:00:00]} 15. Bxe6 {[%emt 0:00:00]} fxe6 {[%emt 0:00:00]} 16. Qc4 {[%emt 0:00:00]} Qc8 {[%emt 0:00:00]} 17. Ng5 {[%emt 0:00:00]} h6 {[%emt 0:00:00]} 18. Nxe6 {[%emt 0:03:28]} Rxd1+ {[%emt 0:00:00]} 19. Rxd1 {[%emt 0:00:05]} Rf7 {[%emt 0:01:01]} 20. f4 {[%emt 0:00:35]} exf4 {[%emt 0:02:51]} 21. Nxf4 {[%emt 0:00:04]} Nh7 {[%emt 0:06:07]} 22. Ng6 {[%emt 0:01:54]} Bf6 {[%emt 0:04:00]} 23. Nh8 {[%emt 0:00:46]} Kxh8 {[%emt 0:00:33]} 24. Qxf7 {[%emt 0:00:05]} Ng5 {[%emt 0:00:29]} 25. Qd7 {[%emt 0:00:51]} Qf8 {[%emt 0:00:59]} 26. Qd6 {[%emt 0:01:40]} Be7 {[%emt 0:03:01]} 27. Qd5 {[%emt 0:01:41]} Qf4 {[%emt 0:00:45]} 28. Qf5 {[%emt 0:00:35]} Qg3 {[%emt 0:01:48]} 29. Rd3 {[%emt 0:00:16]} Qh4 {[%emt 0:01:05]} 30. Qf2 {[%emt 0:00:23]} Qh5 {[%emt 0:00:46]} 31. Qe2 {[%emt 0:00:31]} Qh4 {[%emt 0:00:38]} 32. Nd5 {[%emt 0:00:13]} c4 {[%emt 0:02:04]} 33. Nxe7 {[%emt 0:12:47]} cxd3 {[%emt 0:00:45] [#]} 34. Ng6+ $1 {[%emt 0:00:03]} ({Much less strong is} 34. cxd3 $6 Nxh3+ 35. gxh3 Qxe7 $16) 34... Kh7 {[%emt 0:02:31]} 35. Nxh4 {[%emt 0:00:08]} dxe2 {[%emt 0:00:01]} 36. Kf2 {[%emt 0:00:02]} Nxe4+ {[%emt 0:00:40]} 37. Kxe2 {[%emt 0:00:04]} g5 {[%emt 0:00:16]} 38. Nf3 {[%emt 0:06:58]} Kg6 {[%emt 0:00:11]} 39. Ke3 {[%emt 0:00:59]} Nc5 {[%emt 0:01:39]} 40. a5 {[%emt 0:01:19]} Ne6 {[%emt 0:00:25]} 41. g3 {[%emt 0:02:57]} h5 {[%emt 0:00:26]} 42. Ne5+ {[%emt 0:00:59]} Kf5 {[%emt 0:00:46]} 43. Nd3 {[%emt 0:01:08]} Nd8 {[%emt 0:01:02]} 44. Kd4 {[%emt 0:00:57]} Nc6+ {[%emt 0:00:18]} 45. Kc5 {[%emt 0:01:45]} Nxa5 {[%emt 0:00:24]} 46. b4 {[%emt 0:04:26]} Nc6 {[%emt 0:00:28]} 47. Kb6 {[%emt 0:00:02]} Nd4 {[%emt 0:00:41]} 48. Ne1 {[%emt 0:01:38]} g4 {[%emt 0:01:18]} 49. h4 $1 {[%emt 0:00:35]} Nc6 $2 {[%emt 0:01:02] [#]} (49... Ke4 $11) 50. Nd3 $2 {[%emt 0:08:44]} (50. c3 $1 $18 Ne7 51. c4 (51. Kxb7 Nd5 $16)) 50... Nd4 {[%emt 0:02:53] [#]} 51. c4 $1 {[%emt 0:00:51]} ({Weaker is} 51. Kxb7 Nxc2 52. Kxa6 Nxb4+ 53. Nxb4 Ke4 $11) 51... Ke4 {[%emt 0:00:24]} 52. Nf4 {[%emt 0:00:18]} Nc6 {[%emt 0:01:16]} 53. b5 {[%emt 0:01:37]} (53. Nxh5 $18 Nxb4 54. Nf6+ (54. Kxb7 a5 $16) 54... Kf5 55. Ne8) 53... axb5 {[%emt 0:00:09]} 54. cxb5 {[%emt 0:00:04]} Nd4 {[%emt 0:00:13]} 55. Nxh5 {[%emt 0:00:10]} Kf3 {[%emt 0:00:22]} 56. Nf6 {[%emt 0:02:00]} Kxg3 {[%emt 0:00:13]} 57. h5 {[%emt 0:00:03]} Nf5 {[%emt 0:02:36]} 58. Kxb7 {[%emt 0:03:02]} Kh4 {[%emt 0:00:01] [#]} 59. Nxg4 $1 {[%emt 0:01:07]} Kxh5 {[%emt 0:00:19]} 60. Kc7 {[%emt 0:00:31]} Nd4 {[%emt 0:03:00]} 61. b6 {[%emt 0:00:40]} Ne6+ {[%emt 0:00:34]} 62. Kd6 {[%emt 0:00:23]} Nd8 {[%emt 0:00:19]} 63. Ne5 {[%emt 0:00:04]} Nb7+ {[%emt 0:01:00]} 64. Kc7 {[%emt 0:00:39]} Nc5 {[%emt 0:00:19]} 65. Nd7 {[%emt 0:00:24]} Ne6+ {[%emt 0:03:21]} 66. Kc8 {[%emt 0:00:28]} Nd4 {[%emt 0:00:20]} 67. b7 {[%emt 0:00:13]} Nc6 {[%emt 0:00:19]} 68. Kc7 {[%emt 0:00:10]} Nb4 {[%emt 0:00:18]} 69. Nc5 {[%emt 0:00:29]} 1-0

[Event "17th Delhi GM Open 2019-B"]
[Site "Delhi"]
[Date "2019.01.10"]
[Round "6"]
[White "Heikrujam Jacky Singh"]
[Black "Tajane Ganesh"]
[Result "1-0"]
[ECO "D79"]
[WhiteElo "1870"]
[BlackElo "1743"]
[Annotator "NA"]
[PlyCount "26"]
[EventDate "2019.01.09"]
[EventType "swiss"]
[EventCountry "IND"]
[SourceTitle "playchess.com"]
[Source "ChessBase"]
[SourceQuality "1"]
[TimeControl "3600+30"]

{[%evp 12,24,22,32767,32767,12,29,32767,32767,32767,32767,32767,-1,13,18]} 1. d4 {[%emt 0:00:00]} Nf6 {[%emt 0:00:00]} 2. Nf3 {[%emt 0:00:00]} c5 {[%emt 0:00:00]} 3. c3 {[%emt 0:00:00]} cxd4 {[%emt 0:00:00]} 4. cxd4 {[%emt 0:00:00]} g6 {[%emt 0:00:00]} 5. g3 {[%emt 0:00:00]} Bg7 {[%emt 0:00:00]} 6. Bg2 {[%emt 0:00:00]} O-O {[%emt 0:00:00]} 7. O-O {[%emt 0:00:00]} d5 {[%emt 0:00:00]} 8. Nc3 {[%emt 0:00:00]} Nc6 {[%emt 0:03:38] LiveBook: 555 Games} 9. a3 {[%emt 0:02:21]} Be6 {[%emt 0:00:01]} 10. Re1 {[%emt 0:08:34]} Rc8 {[%emt 0:02:03]} 11. Ne5 {[%emt 0:05:24]} Nxe5 {[%emt 0:06:23]} 12. dxe5 {[%emt 0:00:00]} Ng4 $11 {[%emt 0:00:32]} 13. Nxd5 {[%emt 0:11:00]} Nxe5 {[%emt 0:00:00]} 1-0

[Event "17th Delhi GM Open 2019-B"]
[Site "Delhi"]
[Date "2019.01.10"]
[Round "6"]
[White "Dhanush Ragav N S"]
[Black "Deepak, Rai"]
[Result "1-0"]
[ECO "E11"]
[WhiteElo "1854"]
[BlackElo "1710"]
[Annotator "NA"]
[PlyCount "105"]
[EventDate "2019.01.09"]
[EventType "swiss"]
[EventCountry "IND"]
[SourceTitle "playchess.com"]
[Source "ChessBase"]
[SourceQuality "1"]
[TimeControl "3600+30"]

{[%evp 8,105,16,17,22,18,24,32767,32767,32767,32767,10,6,32767,32767,32767,32767,32767,32767,32767,32767,32767,32767,32767,32767,32767,32767,-99,-56,-84,-81,-83,-17,32767,42,32767,32767,32767,32767,32767,32767,32767,32767,32767,32767,32767,32767,32767,32767,32767,32767,32767,32767,32767,32767,32767,32767,236,239,234,215,225,301,32767,354,245,223,262,243,0,227,205,294,339,322,468,395,270,295,414,32767,384,207,32767,32767,224,164,207,32767,32767,32767,452,326,0,32767,32767,4134,12827,29984,29986]} 1. d4 {[%emt 0:00:00]} Nf6 {[%emt 0:00:00]} 2. c4 {[%emt 0:00:00]} e6 {[%emt 0:00:00]} 3. Nf3 {[%emt 0:00:00]} Bb4+ {[%emt 0:00:00]} 4. Nbd2 {[%emt 0:00:00]} b6 {[%emt 0:00:00]} 5. a3 {[%emt 0:00:00]} Bxd2+ {[%emt 0:00:00]} 6. Bxd2 {[%emt 0:00:00]} Bb7 {[%emt 0:00:00]} 7. Bg5 {[%emt 0:00:00]} h6 {[%emt 0:00:00]} 8. Bh4 {[%emt 0:00:00]} d6 {[%emt 0:00:00]} 9. e3 {[%emt 0:00:00]} Nbd7 {[%emt 0:00:00] LiveBook: 161 Games} 10. Be2 {[%emt 0:00:00]} g5 {[%emt 0:00:00]} 11. Bg3 {[%emt 0:00:00]} Ne4 {[%emt 0:00:00] E11: Bogo-Indian} 12. h4 {[%emt 0:08:18]} (12. d5 Qf6 13. Nd4 O-O-O 14. Bf3 Qg6 15. Qc2 Nxg3 16. Qxg6 fxg6 17. hxg3 exd5 18. Bxd5 Bxd5 19. cxd5 {½-½ (67) Kunin,V (2554)-Bachmann,A (2598) Hofheim 2014}) 12... Nxg3 $146 {[%emt 0:00:00]} ({Predecessor:} 12... Qf6 13. Qa4 g4 14. Nd2 Nxg3 15. fxg3 c5 16. Rf1 Qg7 17. Rf4 h5 18. O-O-O cxd4 19. exd4 {1-0 (31) Inkiov,V (2475)-Reeh,O (2430) Gausdal 1989}) 13. fxg3 {[%emt 0:00:13]} Rg8 {[%emt 0:00:00]} 14. hxg5 {[%emt 0:08:51]} hxg5 {[%emt 0:00:00]} 15. Bd3 {[%emt 0:05:18]} g4 {[%emt 0:00:00]} 16. Nh4 {[%emt 0:01:39]} Qg5 {[%emt 0:00:00]} 17. Qd2 {[%emt 0:04:11]} c5 {[%emt 0:00:00]} 18. O-O-O {[%emt 0:03:12]} cxd4 {[%emt 0:00:00]} 19. exd4 {[%emt 0:00:46] [#]} Rc8 {[%emt 0:00:33]} ({Black should try} 19... d5 $1 $17 20. Qxg5 Rxg5 21. cxd5 Bxd5) 20. Rde1 {[%emt 0:06:31]} d5 {[%emt 0:05:08]} 21. Nf5 {[%emt 0:02:57]} Rc6 {[%emt 0:12:52]} 22. Qxg5 {[%emt 0:01:39]} Rxg5 {[%emt 0:00:02]} 23. Rh8+ {[%emt 0:00:33]} Nf8 {[%emt 0:00:14]} 24. Kd2 {[%emt 0:00:24]} Rc7 {[%emt 0:08:02]} 25. c5 {[%emt 0:00:30]} bxc5 {[%emt 0:01:39]} 26. dxc5 {[%emt 0:00:28]} Rxf5 {[%emt 0:03:32]} 27. Bxf5 {[%emt 0:00:20]} Rxc5 {[%emt 0:00:06]} 28. Bxg4 {[%emt 0:00:34]} Ke7 {[%emt 0:00:28]} 29. Bh5 {[%emt 0:00:34]} d4 {[%emt 0:00:55]} 30. Bf3 {[%emt 0:00:28]} Rb5 {[%emt 0:00:41]} 31. b4 {[%emt 0:00:20]} a5 {[%emt 0:02:21]} 32. Rh5 {[%emt 0:00:37]} Rxh5 {[%emt 0:00:44]} 33. Bxh5 {[%emt 0:00:04]} axb4 {[%emt 0:00:46]} 34. axb4 {[%emt 0:00:15]} Nd7 {[%emt 0:00:29]} 35. Bf3 {[%emt 0:00:47]} Ba6 {[%emt 0:00:41]} 36. Ra1 {[%emt 0:00:47]} Bc4 $1 {[%emt 0:00:23]} 37. Be2 {[%emt 0:00:29]} Bd5 {[%emt 0:00:37]} 38. Bf3 $2 {[%emt 0:00:22]} ({White should try} 38. Kd3 $18) 38... Bc4 {[%emt 0:00:01]} 39. Rc1 {[%emt 0:00:00]} Nb6 {[%emt 0:01:14]} (39... Ne5 $142 40. Rh1 Bb5) 40. Be2 {[%emt 0:00:29]} Bxe2 {[%emt 0:00:34]} 41. Kxe2 {[%emt 0:00:16]} Kd6 {[%emt 0:00:10]} 42. Kd3 {[%emt 0:00:38]} e5 {[%emt 0:00:13]} 43. Rf1 {[%emt 0:00:29]} Nd5 {[%emt 0:01:15]} 44. Rxf7 {[%emt 0:00:31]} Nxb4+ {[%emt 0:00:12]} 45. Ke4 {[%emt 0:00:26]} Nd5 {[%emt 0:00:19]} 46. g4 {[%emt 0:00:34]} (46. Rf8 $142 Nc3+ 47. Kf5 (47. Kd3 Ke7 $18)) 46... Ke6 {[%emt 0:00:40]} 47. Ra7 {[%emt 0:00:26]} Nf6+ {[%emt 0:00:14]} 48. Kf3 {[%emt 0:00:26]} e4+ {[%emt 0:00:18]} 49. Kf4 {[%emt 0:00:40]} e3 {[%emt 0:02:40]} 50. g5 $2 {[%emt 0:00:27]} (50. Ra6+ $18 Kd5 51. Kf3 (51. Rxf6 $2 e2 $19)) 50... e2 {[%emt 0:03:08]} 51. gxf6 {[%emt 0:00:28]} d3 {[%emt 0:00:54] [#]} 52. Kf3 $1 {[%emt 0:00:18]} ({Don't blunder} 52. Ra6+ $2 Kf7 $19) 52... Kxf6 {[%emt 0:00:20]} 53. Ra1 {[%emt 0:00:22]} 1-0

[Event "17th Delhi GM Open 2019-B"]
[Site "Delhi"]
[Date "2019.01.10"]
[Round "6"]
[White "Selvamurugan B"]
[Black "Sai Kiran Y"]
[Result "0-1"]
[ECO "C11"]
[WhiteElo "1844"]
[BlackElo "1732"]
[Annotator "NA"]
[PlyCount "138"]
[EventDate "2019.01.09"]
[EventType "swiss"]
[EventCountry "IND"]
[SourceTitle "playchess.com"]
[Source "ChessBase"]
[SourceQuality "1"]
[TimeControl "3600+30"]

1. e4 {[%emt 0:00:00]} e6 {[%emt 0:00:00]} 2. Nf3 {[%emt 0:00:00]} d5 {[%emt 0:00:00]} 3. Nc3 {[%emt 0:00:00]} Nf6 {[%emt 0:00:00]} 4. e5 {[%emt 0:00:00]} Nfd7 {[%emt 0:00:00]} 5. d4 {[%emt 0:00:00]} c5 {[%emt 0:00:00]} 6. dxc5 {[%emt 0:00:00]} Nc6 {[%emt 0:00:00]} 7. Bf4 {[%emt 0:00:00]} Nxc5 {[%emt 0:00:00]} 8. Bd3 {[%emt 0:00:00]} Be7 {[%emt 0:00:00]} 9. h4 {[%emt 0:00:00]} Bd7 {[%emt 0:00:00] LiveBook: 4 Games C11: French: Classical System: 4 e5 and 4 Bg5 dxe4} (9... a6 10. a3 b5 11. h5 f5 12. Ne2 d4 13. Nexd4 Nxd4 14. Nxd4 Bg5 {½-½ (14) Perez Ponsa,F (2484)-Bruzon Batista,L (2689) Montevideo 2011}) 10. a3 {[%emt 0:00:00]} Rc8 {[%emt 0:00:00]} 11. Rh3 $146 {[%emt 0:00:00]} ({Predecessor:} 11. Qe2 h6 12. Qd2 a6 13. Rb1 Nxd3+ 14. cxd3 f5 15. Ne2 Kf7 16. h5 Na5 17. Ned4 {1-0 (45) Masternak,G (2340)-Borik,O (2415) Czechia 1994}) 11... Qb6 {[%emt 0:00:00]} 12. Rb1 {[%emt 0:12:47]} f6 {[%emt 0:00:00]} 13. Rg3 {[%emt 0:00:03]} fxe5 {[%emt 0:00:00]} 14. Nxe5 {[%emt 0:01:51]} Nxd3+ {[%emt 0:02:23]} 15. cxd3 {[%emt 0:02:55]} Rf8 {[%emt 0:08:00]} 16. Nxd7 {[%emt 0:18:16]} Kxd7 {[%emt 0:00:25]} 17. Qd2 {[%emt 0:05:13]} Qd4 {[%emt 0:00:01]} 18. Bg5 {[%emt 0:07:02]} Bxg5 {[%emt 0:00:45]} 19. Rxg5 {[%emt 0:01:31]} h6 {[%emt 0:01:35]} 20. Nb5 {[%emt 0:01:27]} Qf6 {[%emt 0:00:00]} 21. Rg3 {[%emt 0:00:37]} a6 {[%emt 0:00:31]} 22. Nc3 {[%emt 0:00:22]} Rf7 {[%emt 0:01:03]} 23. Rf3 {[%emt 0:00:32]} Qg6 {[%emt 0:00:34]} 24. Rxf7+ {[%emt 0:00:08]} Qxf7 {[%emt 0:00:00]} 25. Na4 {[%emt 0:00:29]} Kc7 {[%emt 0:01:38]} 26. Rc1 {[%emt 0:00:18]} Kb8 {[%emt 0:00:37]} 27. Qe3 {[%emt 0:00:52]} d4 {[%emt 0:02:41]} 28. Qg3+ {[%emt 0:00:53]} e5 {[%emt 0:02:15]} 29. Nc5 {[%emt 0:00:43]} Ka7 {[%emt 0:01:34]} 30. Ne4 {[%emt 0:00:30]} Qb3 {[%emt 0:01:04]} 31. Nd6 {[%emt 0:00:18]} Rc7 {[%emt 0:01:15]} 32. Nc4 {[%emt 0:00:23]} Re7 {[%emt 0:01:50]} (32... g5 $11) 33. Qg6 $2 {[%emt 0:00:40] [#]} (33. Qf3 $14) 33... Qb5 {[%emt 0:01:48]} (33... e4 $1 $17 {[%cal Re4d3][%mdl 512]} 34. dxe4 Ne5 35. Nxe5 Rxe5) 34. f3 {[%emt 0:00:47]} Qd5 {[%emt 0:01:22]} 35. Qd6 {[%emt 0:02:13]} Qf7 {[%emt 0:00:00]} 36. Qc5+ {[%emt 0:00:16]} Kb8 {[%emt 0:00:00]} 37. Qd6+ {[%emt 0:00:44]} Ka7 {[%emt 0:00:18]} 38. Qc5+ {[%emt 0:00:26]} Kb8 {[%emt 0:00:00]} 39. Na5 {[%emt 0:00:44]} Nxa5 {[%emt 0:00:40]} 40. Qxa5 {[%emt 0:00:25]} Re8 {[%emt 0:00:46]} ({Don't blunder} 40... Qf4 $2 41. Qd8+ Ka7 42. Rc8 $18) 41. Qc5 {[%emt 0:00:40]} Qf4 {[%emt 0:01:01]} 42. Kf1 {[%emt 0:00:28]} Qxh4 {[%emt 0:00:17]} 43. Qd6+ {[%emt 0:00:25]} Ka8 {[%emt 0:00:00]} 44. Rc7 {[%emt 0:00:37]} Qh1+ {[%emt 0:00:26]} 45. Kf2 {[%emt 0:00:06]} Qb1 {[%emt 0:00:40]} 46. Qb6 {[%emt 0:00:50]} Rb8 {[%emt 0:00:05]} 47. Qb3 {[%emt 0:00:38]} g5 {[%emt 0:00:49]} 48. Rc5 {[%emt 0:01:19] [#]} (48. Qc2 $11 {keeps the balance.} Qxc2+ 49. Rxc2) 48... g4 $1 {[%emt 0:00:00]} 49. Rxe5 {[%emt 0:00:31]} Qc1 {[%emt 0:00:02]} 50. Re7 {[%emt 0:00:02]} gxf3 {[%emt 0:00:00]} 51. gxf3 {[%emt 0:00:00]} Qd2+ {[%emt 0:00:01]} 52. Re2 {[%emt 0:00:20]} Qf4 {[%emt 0:00:00]} 53. Qe6 {[%emt 0:00:46]} Rf8 {[%emt 0:01:16]} 54. Qe4 {[%emt 0:00:13]} Qh2+ {[%emt 0:00:11]} 55. Ke1 {[%emt 0:00:33]} Qg1+ {[%emt 0:00:30]} 56. Kd2 {[%emt 0:00:54]} Rc8 {[%emt 0:00:07]} 57. Re1 {[%emt 0:00:40]} Qf2+ {[%emt 0:00:00]} 58. Re2 {[%emt 0:00:25]} Qg1 {[%emt 0:00:00]} 59. Re1 {[%emt 0:00:27]} Qg5+ {[%emt 0:00:00]} 60. f4 {[%emt 0:00:45]} Qc5 {[%emt 0:00:00]} 61. Ke2 {[%emt 0:00:45]} Qh5+ {[%emt 0:01:02]} 62. Kd2 {[%emt 0:00:26]} Qc5 {[%emt 0:00:54]} 63. Ke2 {[%emt 0:00:13]} Qc2+ {[%emt 0:00:23]} 64. Kf1 $2 {[%emt 0:00:36]} (64. Kf3 $17 {was forced.}) 64... Qxb2 {[%emt 0:00:23]} (64... Qh2 $142 65. Re2 Qg3) 65. f5 {[%emt 0:00:48]} Rg8 {[%emt 0:01:32]} ({But not} 65... Qxa3 66. f6 $17) (65... Qh2 $19 66. Rb1 Rc7) 66. Qf3 $2 {[%emt 0:00:25]} (66. Qd5 $11 Rf8 67. Re7) 66... Qh2 {[%emt 0:00:22]} 67. Qf2 {[%emt 0:00:25]} Qh3+ $19 {[%emt 0:00:55] Double Attack} 68. Ke2 {[%emt 0:00:06]} Rg2 {[%emt 0:00:15]} 69. Rf1 {[%emt 0:00:06]} Qe3+ {[%emt 0:00:11]} 0-1

[Event "17th Delhi GM Open 2019-B"]
[Site "Delhi"]
[Date "2019.01.10"]
[Round "6"]
[White "Rivera Martinez, Luis Manu"]
[Black "Yadav Prem Gopal"]
[Result "1-0"]
[ECO "B35"]
[WhiteElo "1831"]
[BlackElo "1669"]
[Annotator "NA"]
[PlyCount "101"]
[EventDate "2019.01.09"]
[EventType "swiss"]
[EventCountry "IND"]
[SourceTitle "playchess.com"]
[Source "ChessBase"]
[SourceQuality "1"]
[TimeControl "3600+30"]

1. e4 {[%emt 0:00:00]} c5 {[%emt 0:00:00]} 2. Nf3 {[%emt 0:00:00]} g6 {[%emt 0:00:00]} 3. d4 {[%emt 0:00:00]} cxd4 {[%emt 0:00:00]} 4. Nxd4 {[%emt 0:00:00]} Bg7 {[%emt 0:00:00]} 5. Nc3 {[%emt 0:00:00]} Nc6 {[%emt 0:00:00]} 6. Be3 {[%emt 0:00:00]} Nf6 {[%emt 0:00:00]} 7. Bc4 {[%emt 0:00:00]} Qa5 {[%emt 0:00:00]} 8. O-O {[%emt 0:00:00]} O-O {[%emt 0:00:00]} 9. Bb3 {[%emt 0:00:00]} d6 {[%emt 0:00:00]} 10. f3 {[%emt 0:00:00]} Bd7 {[%emt 0:00:00] LiveBook: 34 Games} 11. Nd5 {[%emt 0:00:00] B35: Sicilian: Accelerated Dragon with 5 Nc3: main line} (11. Qd2 Rfc8 12. Rad1 Ne5 13. Qe2 Qa6 14. Qxa6 bxa6 15. f4 Nc4 16. Bc1 Be8 17. Rfe1 Nd7 18. Nd5 Kf8 19. f5 Ndb6 20. Bg5 Nxd5 21. exd5 {0-1 (46) Savitskiy,S (2415)-Atabayev,M (2492) Moscow 2017}) 11... Rfe8 {[%emt 0:00:00]} 12. Nxc6 {[%emt 0:00:00]} bxc6 {[%emt 0:00:00]} 13. Nf4 $146 {[%emt 0:00:00]} ({Predecessor:} 13. Nxf6+ Bxf6 14. Bd4 Bxd4+ 15. Qxd4 c5 16. Qe3 Rac8 17. c4 Qb4 18. a3 Qb7 {0-1 (50) Balkiewicz,E (2133)-Toma,K (2200) Trzebinia 2002}) 13... Qc7 {[%emt 0:00:00]} 14. c4 {[%emt 0:00:00]} c5 {[%emt 0:00:00]} 15. e5 {[%emt 0:05:04]} dxe5 {[%emt 0:00:00]} 16. Nd3 {[%emt 0:00:00]} e4 {[%emt 0:00:00]} 17. Nxc5 {[%emt 0:01:07]} Bc6 {[%emt 0:00:14]} 18. fxe4 {[%emt 0:06:29]} Nxe4 {[%emt 0:00:30]} 19. Nxe4 {[%emt 0:00:36]} Bxe4 {[%emt 0:00:03]} 20. c5 {[%emt 0:01:17]} e6 {[%emt 0:00:14]} 21. Qd6 {[%emt 0:11:01]} Qb7 {[%emt 0:04:27]} 22. Rac1 {[%emt 0:00:10]} Bc6 {[%emt 0:03:56]} ({Better is} 22... Bxb2 $15 23. c6 Qe7) 23. Rf2 {[%emt 0:00:46]} Rad8 {[%emt 0:01:24]} 24. Qf4 {[%emt 0:02:18]} f5 {[%emt 0:02:31]} 25. Ba4 {[%emt 0:03:06]} e5 {[%emt 0:01:59]} 26. Qc4+ {[%emt 0:01:51]} Kh8 {[%emt 0:00:05]} 27. Bxc6 {[%emt 0:01:11]} Qxc6 {[%emt 0:00:04]} 28. b4 $1 {[%emt 0:01:00]} a6 $14 {[%emt 0:05:20]} 29. a4 {[%emt 0:00:10]} f4 {[%emt 0:02:33]} 30. b5 {[%emt 0:00:32]} axb5 {[%emt 0:00:36]} 31. axb5 {[%emt 0:00:00]} Qa8 {[%emt 0:01:18]} 32. Ra2 {[%emt 0:01:38]} Qc8 {[%emt 0:00:34]} 33. Bf2 {[%emt 0:01:14]} e4 {[%emt 0:00:07]} 34. c6 {[%emt 0:00:48]} Qg4 {[%emt 0:09:04]} 35. c7 {[%emt 0:01:23]} Rd1+ {[%emt 0:01:07]} 36. Be1 {[%emt 0:01:16]} Bd4+ {[%emt 0:01:43]} 37. Kh1 {[%emt 0:01:08]} f3 {[%emt 0:02:47]} 38. Rxd1 {[%emt 0:00:37]} fxg2+ {[%emt 0:00:06]} 39. Rxg2 {[%emt 0:00:01]} Qxd1 {[%emt 0:00:01]} 40. Re2 {[%emt 0:00:31]} Rc8 {[%emt 0:00:23]} 41. Qc2 {[%emt 0:00:26]} Qxc2 {[%emt 0:01:29]} 42. Rxc2 {[%emt 0:00:00]} Bb6 {[%emt 0:00:01]} 43. Bg3 {[%emt 0:00:12]} e3 {[%emt 0:00:18]} 44. Rc6 {[%emt 0:00:13]} e2 {[%emt 0:06:50]} 45. Rxb6 {[%emt 0:00:50]} Rxc7 {[%emt 0:00:02]} 46. Re6 {[%emt 0:00:07]} Rc1+ {[%emt 0:00:25]} 47. Kg2 {[%emt 0:00:01]} Rb1 {[%emt 0:00:03]} 48. b6 {[%emt 0:00:24]} Kg7 {[%emt 0:00:13]} 49. Bf2 {[%emt 0:00:14]} Rb2 {[%emt 0:00:26]} 50. Bd4+ {[%emt 0:00:01]} Kf7 {[%emt 0:00:00]} 51. Bxb2 {[%emt 0:00:08]} 1-0

[Event "17th Delhi GM Open 2019-B"]
[Site "Delhi"]
[Date "2019.01.10"]
[Round "6"]
[White "Chandan, Mandal"]
[Black "Mandloi, Mukesh"]
[Result "0-1"]
[ECO "B33"]
[WhiteElo "1823"]
[BlackElo "1726"]
[Annotator "NA"]
[PlyCount "70"]
[EventDate "2019.01.09"]
[EventType "swiss"]
[EventCountry "IND"]
[SourceTitle "playchess.com"]
[Source "ChessBase"]
[SourceQuality "1"]
[TimeControl "3600+30"]

1. e4 {[%emt 0:00:00]} c5 {[%emt 0:00:00]} 2. Nf3 {[%emt 0:00:00]} Nc6 {[%emt 0:00:00]} 3. d4 {[%emt 0:00:00]} cxd4 {[%emt 0:00:00]} 4. Nxd4 {[%emt 0:00:00]} Nf6 {[%emt 0:00:00]} 5. Nc3 {[%emt 0:00:00]} e5 {[%emt 0:00:00]} 6. Ndb5 {[%emt 0:00:00]} d6 {[%emt 0:00:00]} 7. Bg5 {[%emt 0:00:00]} a6 {[%emt 0:00:00]} 8. Na3 {[%emt 0:00:00]} b5 {[%emt 0:00:00]} 9. Nd5 {[%emt 0:00:00]} Be7 {[%emt 0:00:00]} 10. Bxf6 {[%emt 0:00:00]} Bxf6 {[%emt 0:00:00]} 11. c4 {[%emt 0:00:00]} b4 {[%emt 0:00:00]} 12. Nc2 {[%emt 0:00:00]} a5 {[%emt 0:00:00]} 13. Qf3 {[%emt 0:00:00]} Bg5 {[%emt 0:00:00]} 14. Rd1 {[%emt 0:00:00]} O-O {[%emt 0:00:00]} 15. h4 {[%emt 0:00:00]} Bh6 {[%emt 0:00:00]} 16. g4 {[%emt 0:00:00]} Bf4 {[%emt 0:00:00] LiveBook: 5 Games} (16... f6 $11) 17. Nxf4 {[%emt 0:00:00]} exf4 {[%emt 0:00:00]} 18. Qxf4 {[%emt 0:00:00]} Ne5 {[%emt 0:00:00]} 19. Be2 {[%emt 0:00:00]} Qc7 {[%emt 0:00:00]} 20. b3 {[%emt 0:00:00]} d5 $1 {[%emt 0:00:00]} 21. O-O $11 {[%emt 0:03:17]} dxe4 {[%emt 0:00:00]} 22. Qxe4 {[%emt 0:01:52]} Bb7 {[%emt 0:00:00]} 23. Qe3 {[%emt 0:00:44]} Rae8 {[%emt 0:00:00]} 24. Qh3 {[%emt 0:03:51]} Ng6 {[%emt 0:00:00]} 25. Bd3 {[%emt 0:06:31]} Nf4 {[%emt 0:00:31]} 26. Qg3 {[%emt 0:05:22]} Rd8 {[%emt 0:07:09]} 27. Kh2 {[%emt 0:01:13]} Qc6 {[%emt 0:01:26]} 28. Ne1 {[%emt 0:03:25]} Ne6 {[%emt 0:12:08]} 29. Nc2 {[%emt 0:06:01]} Nc5 {[%emt 0:01:09]} 30. Ne1 {[%emt 0:06:09]} Rfe8 {[%emt 0:04:57]} 31. Bc2 {[%emt 0:00:27]} Rxd1 {[%emt 0:03:09]} 32. Bxd1 {[%emt 0:00:01]} Ne4 {[%emt 0:04:42]} 33. Qh3 {[%emt 0:00:01]} Qd6+ {[%emt 0:02:18]} 34. Kg1 {[%emt 0:01:52]} Qxd1 {[%emt 0:00:45]} 35. Nd3 {[%emt 0:00:32]} Qd2 {[%emt 0:02:34]} 0-1